fUST/lending_fUST_20250918
["ID","MTS","AMOUNT","RATE_DAILY","PERIOD"]
[386063668,1758207049745,-480.0,0.00024504,3]
[386063669,1758207049755,-480.0,0.00024504,3]
[386063670,1758207049766,-480.0,0.00024504,3]
[386063671,1758207049776,-947.29,0.00024504,3]
[386063672,1758207049786,-2621.42,0.00024504,3]
[386063673,1758207049797,-480.0,0.00024504,3]
[386063674,1758207049807,-480.0,0.00024504,3]
[386063675,1758207049817,-480.0,0.00024504,3]
[386063676,1758207049827,-487.28,0.00024504,3]
[386063677,1758207049838,-480.0,0.00024504,3]
[386063678,1758207049847,-480.0,0.00024504,3]
[386063679,1758207049857,-1054.1,0.00024504,3]
[386063680,1758207049868,-568.13,0.00024506,3]
[386063681,1758207049878,-480.0,0.00024506,3]
[386063682,1758207049889,-480.0,0.00024506,3]
[386063683,1758207049899,-810.4,0.00024506,3]
[386063684,1758207049909,-5215.31,0.00024506,3]
[386063685,1758207049919,-480.0,0.00024506,3]
[386063686,1758207049929,-554.4,0.00024506,3]
[386063687,1758207049939,-480.0,0.00024506,3]
[386063688,1758207049948,-200.0,0.0002451,7]
[386063689,1758207049959,-480.0,0.00024531,3]
[386063690,1758207049969,-480.0,0.00024531,3]
[386063691,1758207049980,-480.0,0.00024531,3]
[386063692,1758207049990,-480.0,0.00024531,3]
[386063693,1758207050001,-480.0,0.00024531,3]
[386063694,1758207050012,-480.0,0.00024531,3]
[386063695,1758207050022,-480.0,0.00024531,3]
[386063696,1758207050033,-452.09285071,0.00024531,3]
[386063697,1758207050045,-480.0,0.00024531,3]
[386063698,1758207050056,-495.68204867,0.00024531,3]
[386063699,1758207050066,-480.0,0.00024531,3]
[386063700,1758207050076,-480.0,0.00024531,3]
[386063701,1758207050088,-491.07909822,0.00024531,3]
[386063702,1758207050099,-570.83,0.00024531,3]
[386063703,1758207050109,-176.77347122,0.00024568,2]
[386063704,1758207050121,-1503.49402217,0.00024568,2]
[386063705,1758207050131,-344.79616114,0.00024568,2]
[386063706,1758207050142,-1584.00000807,0.00024568,2]
[386063707,1758207050153,-1500.0,0.00024568,2]
[386063708,1758207050163,-1506.2363446,0.00024568,2]
[386063709,1758207050174,-1000.0,0.00024592,2]
[386063710,1758207050184,-1000.0,0.00024592,2]
[386063711,1758207050195,-188.0,0.00024599,2]
[386063712,1758207050206,-188.0,0.00024612,2]
[386063713,1758207050216,-1500.0,0.00024616,2]
[386063714,1758207050226,-1500.0,0.00024616,2]
[386063715,1758207050238,-2000.0,0.00024616,2]
[386063716,1758207050248,-2000.0,0.00024616,2]
[386063717,1758207050259,-2000.0,0.00024616,2]
[386063718,1758207050269,-151.0,0.00024658,7]
[386063719,1758207050278,-201.930903,0.00024658,7]
[386063720,1758207050288,-500.0,0.00024658,2]
[386063721,1758207050298,-800.0,0.0002466,2]
[386063722,1758207050365,-260.0,0.00024685,2]
[386063723,1758207050377,-1500.0,0.00024712,2]
[386063724,1758207050387,-646.0,0.00024714,3]
[386063725,1758207050398,-151.0,0.00024714,3]
[386063726,1758207050408,-199.02326593,0.00024714,3]
[386063727,1758207050418,-273.60301024,0.00024714,3]
[386063728,1758207050430,-500.0,0.00024714,3]
[386063729,1758207050440,-199.03070636,0.00024714,3]
[386063730,1758207050450,-233.855084,0.00024714,2]
[386063731,1758207050460,-1500.0,0.00024768,2]
[386063732,1758207050471,-480.0,0.00024774,3]
[386063733,1758207050482,-480.0,0.00024774,3]
[386063734,1758207050492,-514.16,0.00024774,3]
[386063735,1758207050503,-974.04,0.00024774,3]
[386063736,1758207050515,-578.17,0.00024774,3]
[386063737,1758207050525,-151.0,0.00024775,7]
[386063738,1758207050536,-151.0,0.00024775,7]
[386063739,1758207050547,-188.0,0.00024775,2]
[386063740,1758207050558,-347.89,0.00024776,3]
[386063741,1758207050569,-480.0,0.00024776,3]
[386063742,1758207050579,-480.0,0.00024776,3]
[386063743,1758207050590,-480.0,0.00024776,3]
[386063744,1758207050600,-500.63191286,0.00024776,3]
[386063745,1758207050610,-480.0,0.00024776,3]
[386063746,1758207050621,-609.15,0.00024776,3]
[386063747,1758207050632,-480.0,0.00024776,3]
[386063748,1758207050643,-480.0,0.00024776,3]
[386063749,1758207050654,-306.24,0.00024776,3]
[386063750,1758207050665,-480.0,0.00024776,3]
[386063751,1758207050675,-480.0,0.00024776,3]
[386063752,1758207050686,-169.97421952,0.00024778,3]
[386063753,1758207050698,-480.0,0.00024778,3]
[386063754,1758207050708,-480.0,0.00024778,3]
[386063755,1758207050720,-480.0,0.00024778,3]
[386063756,1758207050730,-480.0,0.00024778,3]
[386063757,1758207050741,-480.0,0.00024778,3]
[386063758,1758207050751,-480.0,0.00024778,3]
[386063759,1758207050762,-480.0,0.00024778,3]
[386063760,1758207050772,-480.0,0.00024778,3]
[386063761,1758207050783,-1994.86,0.00024778,3]
[386063762,1758207050794,-480.0,0.00024778,3]
[386063763,1758207050804,-480.0,0.00024778,3]
[386063764,1758207050815,-480.0,0.00024778,3]
[386063765,1758207050826,-947.29,0.00024778,3]
[386063766,1758207050836,-2621.42,0.00024778,3]
[386063767,1758207050847,-480.0,0.00024778,3]
[386063768,1758207050857,-480.0,0.00024778,3]
[386063769,1758207050867,-480.0,0.00024778,3]
[386063770,1758207050878,-487.28,0.00024778,3]
[386063771,1758207050888,-480.0,0.00024778,3]
[386063772,1758207050899,-159.7,0.00024778,3]
[386063773,1758207050909,-568.13,0.0002478,3]
[386063774,1758207050920,-480.0,0.0002478,3]
[386063775,1758207050931,-480.0,0.0002478,3]
[386063776,1758207050941,-810.4,0.0002478,3]
[386063777,1758207050952,-5215.31,0.0002478,3]
[386063778,1758207050962,-480.0,0.0002478,3]
[386063779,1758207050973,-151.0,0.0002478,7]
[386063780,1758207050984,-554.4,0.0002478,3]
[386063781,1758207050994,-480.0,0.0002478,3]
[386063782,1758207051005,-13642.12643714,0.000248,2]
[386063783,1758207051015,-480.0,0.00024805,3]
[386063784,1758207051026,-480.0,0.00024805,3]
[386063785,1758207051036,-480.0,0.00024805,3]
[386063786,1758207051048,-480.0,0.00024805,3]
[386063787,1758207051058,-480.0,0.00024805,3]
[386063788,1758207051069,-370.09329399,0.00024805,3]
[386063789,1758207051079,-480.0,0.00024805,3]
[386063790,1758207051089,-480.0,0.00024805,3]
[386063791,1758207051100,-480.0,0.00024805,3]
[386063792,1758207051110,-12142.68220235,0.0002481,2]
[386063793,1758207051121,-850.19566488,0.00024812,2]
[386063794,1758207051132,-420.0,0.00024815,2]
[386063795,1758207051142,-287.0,0.00024815,2]
[386063796,1758207051154,-500.0,0.00024821,2]
[386063797,1758207051165,-500.0,0.00024821,2]
[386063798,1758207051176,-501.24457254,0.00024821,2]
[386063799,1758207051188,-1003.82640437,0.00024821,2]
[386063800,1758207051198,-1000.0,0.00024821,2]
[386063801,1758207051209,-500.0,0.00024821,2]
[386063802,1758207051219,-406.13618103,0.00024821,2]
[386063803,1758207051230,-1000.0,0.00024821,2]
[386063804,1758207051240,-500.0,0.00024821,2]
[386063805,1758207051250,-1002.54845032,0.00024821,2]
[386063806,1758207051260,-693.34991738,0.00024821,2]
[386063807,1758207051270,-1000.0,0.00024821,2]
[386063808,1758207051280,-1000.0,0.00024821,2]
[386063809,1758207051291,-800.0,0.00024833,2]
[386063810,1758207051301,-47097.3474497,0.0002485,2]
[386063811,1758207051311,-500.0,0.00024873,2]
[386063812,1758207051322,-500.0,0.00024873,2]
[386063813,1758207051333,-500.0,0.00024873,2]
[386063814,1758207051343,-500.0,0.00024873,2]
[386063815,1758207051354,-601.00753204,0.00024873,2]
[386063816,1758207051364,-500.0,0.00024873,2]
[386063817,1758207051374,-500.0,0.00024873,2]
[386063818,1758207051384,-500.0,0.00024873,2]
[386063819,1758207051395,-500.0,0.00024873,2]
[386063820,1758207051406,-500.0,0.00024873,2]
[386063821,1758207051418,-500.0,0.00024873,2]
[386063822,1758207051429,-160.67374199,0.00024873,2]
[386063823,1758207051440,-150.0,0.00024873,2]
[386063824,1758207051451,-500.0,0.00024873,2]
[386063825,1758207051461,-156.30393271,0.00024873,2]
[386063826,1758207051471,-428.6533033,0.00024873,2]
[386063827,1758207051481,-500.0,0.00024873,2]
[386063828,1758207051491,-500.0,0.00024873,2]
[386063829,1758207051502,-500.0,0.00024873,2]
[386063830,1758207051512,-12853.6775364,0.00024886,2]
[386063831,1758207051522,-34389.8456444,0.00024887,2]
[386063832,1758207051533,-1425.895851,0.00024896,2]
[386063833,1758207051543,-155.046698,0.000249,7]
[386063834,1758207051554,-328.0,0.000249,3]
[386063835,1758207051564,-328.0,0.000249,3]
[386063836,1758207051575,-328.0,0.000249,3]
[386063837,1758207051641,-328.0,0.000249,3]
[386063838,1758207051652,-253.08,0.000249,3]
[386063839,1758207051663,-473.74149152,0.000249,2]
[386063840,1758207051674,-629172.213759,0.000249,2]
[386063841,1758207051684,-151.0,0.000249,7]
[386063842,1758207051694,-151.0,0.000249,7]
[386063843,1758207051705,-200.0,0.0002491,7]
[386063844,1758207051716,-1000.0,0.0002492,5]
[386063845,1758207051726,-1680.0,0.0002493,2]
[386063846,1758207051736,-1500.0,0.00024931,2]
[386063847,1758207051747,-500.0,0.00024932,2]
[386063848,1758207051757,-604.0,0.00024955,2]
[386063849,1758207051768,-604.0,0.00024986,2]
[386063850,1758207051779,-646.0,0.00024988,3]
[386063851,1758207051789,-181.76198311,0.00024988,3]
[386063852,1758207051799,-500.0,0.00024988,3]
[386063853,1758207051809,-2000.0,0.00025,2]
[386063854,1758207051820,-16688.5915,0.00025,10]
[386063855,1758207051830,-217.95274215,0.00025,10]
[386063856,1758207051841,-160.0,0.00025,10]
[386063857,1758207051851,-531.6443493,0.00025,10]
[386063858,1758207051862,-417.15472785,0.00025,10]
[386063859,1758207051873,-233.39271932,0.00025,10]
[386063860,1758207051883,-847.96496735,0.00025,10]
[386063861,1758207051893,-480.0,0.00025048,3]
[386063862,1758207051904,-480.0,0.00025048,3]
[386063863,1758207051914,-974.04,0.00025048,3]
[386063864,1758207051926,-578.17,0.00025048,3]
[386063865,1758207051936,-480.0,0.0002505,3]
[386063866,1758207051947,-480.0,0.0002505,3]
[386063867,1758207051957,-480.0,0.0002505,3]
[386063868,1758207051968,-480.0,0.0002505,3]
[386063869,1758207051978,-480.0,0.0002505,3]
[386063870,1758207051989,-480.0,0.0002505,3]
[386063871,1758207051999,-480.0,0.0002505,3]
[386063872,1758207052009,-480.0,0.0002505,3]
[386063873,1758207052019,-594.57348955,0.00025052,3]
[386063874,1758207052029,-480.0,0.00025052,3]
[386063875,1758207052040,-489.50156075,0.00025052,3]
[386063876,1758207052054,-480.0,0.00025052,3]
[386063877,1758207052065,-480.0,0.00025052,3]
[386063878,1758207052075,-621.99,0.00025052,3]
[386063879,1758207052085,-1994.86,0.00025052,3]
[386063880,1758207052097,-480.0,0.00025052,3]
[386063881,1758207052108,-432.12630129,0.00025052,3]
[386063882,1758207052119,-480.0,0.00025052,3]
[386063883,1758207052131,-947.29,0.00025052,3]
[386063884,1758207052141,-2621.42,0.00025052,3]
[386063885,1758207052152,-480.0,0.00025052,3]
[386063886,1758207052163,-490.18487589,0.00025052,3]
[386063887,1758207052174,-480.0,0.00025052,3]
[386063888,1758207052185,-487.28,0.00025052,3]
[386063889,1758207052195,-480.0,0.00025052,3]
[386063890,1758207052206,-480.0,0.00025053,3]
[386063891,1758207052216,-480.0,0.00025053,3]
[386063892,1758207052227,-810.4,0.00025053,3]
[386063893,1758207052237,-5215.31,0.00025053,3]
[386063894,1758207052248,-480.0,0.00025053,3]
[386063895,1758207052258,-554.4,0.00025053,3]
[386063896,1758207052268,-480.0,0.00025053,3]
[386063897,1758207052278,-480.0,0.00025079,3]
[386063898,1758207052287,-480.0,0.00025079,3]
[386063899,1758207052297,-480.0,0.00025079,3]
[386063900,1758207052306,-480.0,0.00025079,3]
[386063901,1758207052317,-480.0,0.00025079,3]
[386063902,1758207052327,-480.0,0.00025079,3]
[386063903,1758207052337,-480.0,0.00025079,3]
[386063904,1758207052346,-480.0,0.00025079,3]
[386063905,1758207052357,-200.0,0.000251,7]
[386063906,1758207052367,-2000.0,0.00025116,2]
[386063907,1758207052378,-502.7228494,0.0002514,2]
[386063908,1758207052387,-155.625,0.00025142,2]
[386063909,1758207052398,-156.514,0.00025147,2]
[386063910,1758207052409,-2500.0,0.00025164,2]
[386063911,1758207052419,-2500.0,0.00025164,2]
[386063912,1758207052429,-168.0,0.00025203,2]
[386063913,1758207052439,-257.0,0.00025205,2]
[386063914,1758207052450,-500.0,0.00025206,2]
[386063915,1758207052460,-513.48665061,0.00025218,2]
[386063916,1758207052470,-188.0,0.00025227,2]
[386063917,1758207052480,-360.0,0.00025233,2]
[386063918,1758207052491,-646.0,0.00025262,3]
[386063919,1758207052502,-155.0,0.00025268,2]
[386063920,1758207052511,-2000.0,0.00025316,2]
[386063921,1758207052522,-188.0,0.00025322,2]
[386063922,1758207052532,-480.0,0.00025322,3]
[386063923,1758207052543,-480.0,0.00025322,3]
[386063924,1758207052553,-974.04,0.00025322,3]
[386063925,1758207052565,-578.17,0.00025322,3]
[386063926,1758207052576,-480.0,0.00025324,3]
[386063927,1758207052586,-480.0,0.00025324,3]
[386063928,1758207052597,-480.0,0.00025324,3]
[386063929,1758207052607,-265.97677009,0.00025324,3]
[386063930,1758207052618,-480.0,0.00025324,3]
[386063931,1758207052629,-480.0,0.00025324,3]
[386063932,1758207052640,-480.0,0.00025324,3]
[386063933,1758207052650,-259.80030642,0.00025324,3]
[386063934,1758207052660,-514.62,0.00025326,3]
[386063935,1758207052671,-480.0,0.00025326,3]
[386063936,1758207052681,-480.0,0.00025326,3]
[386063937,1758207052692,-1994.86,0.00025326,3]
[386063938,1758207052702,-480.0,0.00025326,3]
[386063939,1758207052712,-480.0,0.00025326,3]
[386063940,1758207052722,-947.29,0.00025326,3]
[386063941,1758207052732,-2621.42,0.00025326,3]
[386063942,1758207052743,-480.0,0.00025326,3]
[386063943,1758207052805,-480.0,0.00025326,3]
[386063944,1758207052820,-487.28,0.00025326,3]
[386063945,1758207052831,-480.0,0.00025326,3]
[386063946,1758207052842,-480.0,0.00025327,3]
[386063947,1758207052852,-480.0,0.00025327,3]
[386063948,1758207052863,-810.4,0.00025327,3]
[386063949,1758207052874,-5215.31,0.00025327,3]
[386063950,1758207052884,-480.0,0.00025327,3]
[386063951,1758207052895,-554.4,0.00025327,3]
[386063952,1758207052905,-480.0,0.00025327,3]
[386063953,1758207052915,-168.0,0.00025337,2]
[386063954,1758207052925,-188.0,0.00025342,2]
[386063955,1758207052935,-480.0,0.00025353,3]
[386063956,1758207052946,-480.0,0.00025353,3]
[386063957,1758207052956,-480.0,0.00025353,3]
[386063958,1758207052966,-480.0,0.00025353,3]
[386063959,1758207052977,-480.0,0.00025353,3]
[386063960,1758207052987,-480.0,0.00025353,3]
[386063961,1758207052998,-358.56839668,0.00025353,3]
[386063962,1758207053008,-401.17972931,0.00025353,3]
[386063963,1758207053018,-627.00791338,0.00025368,2]
[386063964,1758207053029,-247.52443193,0.00025368,2]
[386063965,1758207053039,-1500.0,0.00025368,2]
[386063966,1758207053051,-188.0,0.00025375,2]
[386063967,1758207053062,-600.0,0.00025397,20]
[386063968,1758207053072,-810.0,0.000254,4]
[386063969,1758207053082,-1000.0,0.00025421,2]
[386063970,1758207053092,-1000.0,0.00025421,2]
[386063971,1758207053103,-1001.85680148,0.00025421,2]
[386063972,1758207053113,-1039.24311429,0.00025421,2]
[386063973,1758207053124,-1000.0,0.00025421,2]
[386063974,1758207053136,-502.96357146,0.00025421,2]
[386063975,1758207053148,-1000.0,0.00025421,2]
[386063976,1758207053159,-984.43807732,0.00025421,2]
[386063977,1758207053171,-500.49642979,0.00025421,2]
[386063978,1758207053182,-500.0,0.00025421,2]
[386063979,1758207053193,-250.0,0.00025421,2]
[386063980,1758207053203,-1000.0,0.00025421,2]
[386063981,1758207053213,-1002.59968779,0.00025421,2]
[386063982,1758207053223,-1000.0,0.00025421,2]
[386063983,1758207053234,-500.0,0.00025421,2]
[386063984,1758207053243,-12500.0,0.00025421,7]
[386063985,1758207053253,-12500.0,0.00025426,7]
[386063986,1758207053263,-12500.0,0.00025435,7]
[386063987,1758207053272,-12500.0,0.00025444,7]
[386063988,1758207053281,-12500.0,0.00025447,7]
[386063989,1758207053292,-12500.0,0.00025452,7]
[386063990,1758207053302,-12500.0,0.00025456,7]
[386063991,1758207053312,-166.0268219,0.00025473,2]
[386063992,1758207053322,-500.0,0.00025473,2]
[386063993,1758207053332,-500.0,0.00025473,2]
[386063994,1758207053342,-500.0,0.00025473,2]
[386063995,1758207053352,-500.0,0.00025473,2]
[386063996,1758207053362,-500.0,0.00025473,2]
[386063997,1758207053372,-500.0,0.00025473,2]
[386063998,1758207053382,-500.0,0.00025473,2]
[386063999,1758207053392,-500.0,0.00025473,2]
[386064000,1758207053402,-503.19520387,0.00025479,2]
[386064001,1758207053412,-500.0,0.0002548,2]
[386064002,1758207053422,-417.15472785,0.000255,7]
[386064003,1758207053432,-233.39271932,0.000255,7]
[386064004,1758207053442,-160.0,0.000255,7]
[386064005,1758207053452,-847.96496735,0.000255,7]
[386064006,1758207053462,-188.0,0.00025501,2]
[386064007,1758207053472,-200.0,0.0002551,7]
[386064008,1758207053483,-646.0,0.00025536,3]
[386064009,1758207053492,-188.0,0.00025558,2]
[386064010,1758207053502,-480.0,0.00025596,3]
[386064011,1758207053511,-480.0,0.00025596,3]
[386064012,1758207053521,-974.04,0.00025596,3]
[386064013,1758207053531,-578.17,0.00025596,3]
[386064014,1758207053543,-480.0,0.00025598,3]
[386064015,1758207053553,-480.0,0.00025598,3]
[386064016,1758207053563,-480.0,0.00025598,3]
[386064017,1758207053573,-480.0,0.00025598,3]
[386064018,1758207053583,-480.0,0.00025598,3]
[386064019,1758207053594,-480.0,0.00025598,3]
[386064020,1758207053604,-480.0,0.000256,3]
[386064021,1758207053615,-2603.43,0.000256,7]
[386064022,1758207053625,-480.0,0.000256,3]
[386064023,1758207053635,-1994.86,0.000256,3]
[386064024,1758207053645,-480.0,0.000256,3]
[386064025,1758207053655,-226.93375854,0.000256,3]
[386064026,1758207053665,-947.29,0.000256,3]
[386064027,1758207053675,-2621.42,0.000256,3]
[386064028,1758207053685,-480.0,0.000256,3]
[386064029,1758207053695,-480.0,0.000256,3]
[386064030,1758207053705,-487.28,0.000256,3]
[386064031,1758207053715,-196.26336507,0.000256,3]
[386064032,1758207053725,-193.33524171,0.00025601,3]
[386064033,1758207053735,-451.29419452,0.00025601,3]
[386064034,1758207053745,-810.4,0.00025601,3]
[386064035,1758207053755,-5215.31,0.00025601,3]
[386064036,1758207053765,-480.0,0.00025601,3]
[386064037,1758207053775,-554.4,0.00025601,3]
[386064038,1758207053785,-151.0,0.00025601,7]
[386064039,1758207053795,-480.0,0.00025601,3]
[386064040,1758207053805,-168.0,0.00025611,2]
[386064041,1758207053868,-480.0,0.00025627,3]
[386064042,1758207053878,-480.0,0.00025627,3]
[386064043,1758207053888,-480.0,0.00025627,3]
[386064044,1758207053898,-480.0,0.00025627,3]
[386064045,1758207053907,-331.15,0.00025627,3]
[386064046,1758207053918,-480.0,0.00025627,3]
[386064047,1758207053928,-508.93493663,0.00025664,2]
[386064048,1758207053938,-1091.49097882,0.00025709,2]
[386064049,1758207053948,-605.88314967,0.00025712,2]
[386064050,1758207053958,-3000.0,0.00025712,2]
[386064051,1758207053968,-160.0,0.00025712,3]
[386064052,1758207053978,-500.0,0.00025754,2]
[386064053,1758207053988,-460.0,0.00025781,2]
[386064054,1758207053999,-1500.0,0.00025808,2]
[386064055,1758207054009,-646.0,0.0002581,3]
[386064056,1758207054018,-607.0573487,0.00025824,2]
[386064057,1758207054028,-733.20033197,0.00025824,2]
[386064058,1758207054037,-1156.39743087,0.00025864,2]
[386064059,1758207054050,-480.0,0.0002587,3]
[386064060,1758207054059,-974.04,0.0002587,3]
[386064061,1758207054069,-578.17,0.0002587,3]
[386064062,1758207054079,-480.0,0.00025872,3]
[386064063,1758207054090,-480.0,0.00025872,3]
[386064064,1758207054100,-480.0,0.00025872,3]
[386064065,1758207054110,-480.0,0.00025872,3]
[386064066,1758207054119,-480.0,0.00025872,3]
[386064067,1758207054133,-480.0,0.00025872,3]
[386064068,1758207054143,-480.0,0.00025874,3]
[386064069,1758207054153,-480.0,0.00025874,3]
[386064070,1758207054164,-1994.86,0.00025874,3]
[386064071,1758207054173,-480.0,0.00025874,3]
[386064072,1758207054183,-947.29,0.00025874,3]
[386064073,1758207054193,-2621.42,0.00025874,3]
[386064074,1758207054202,-480.0,0.00025874,3]
[386064075,1758207054212,-480.0,0.00025874,3]
[386064076,1758207054222,-487.28,0.00025874,3]
[386064077,1758207054232,-810.4,0.00025875,3]
[386064078,1758207054241,-5215.31,0.00025875,3]
[386064079,1758207054251,-480.0,0.00025875,3]
[386064080,1758207054260,-554.4,0.00025875,3]
[386064081,1758207054270,-480.0,0.00025875,3]
[386064082,1758207054280,-480.0,0.00025901,3]
[386064083,1758207054290,-480.0,0.00025901,3]
[386064084,1758207054299,-480.0,0.00025901,3]
[386064085,1758207054308,-480.0,0.00025901,3]
[386064086,1758207054318,-503.87396356,0.00025916,2]
[386064087,1758207054335,-1015.1512475,0.00025968,2]
[386064088,1758207054351,-1500.0,0.00025968,2]
[386064089,1758207054368,-500.0,0.00025968,2]
[386064090,1758207054388,-250.26706273,0.00025968,2]
[386064091,1758207054407,-1500.0,0.00025968,2]
[386064092,1758207054424,-745.17995536,0.00025968,2]
[386064093,1758207054442,-37438.44258991,0.00026,10]
[386064094,1758207054458,-217.95274215,0.00026,10]
[386064095,1758207054472,-160.0,0.00026,10]
[386064096,1758207054491,-531.6443493,0.00026,10]
[386064097,1758207054510,-417.15472785,0.00026,10]
[386064098,1758207054527,-342.196883,0.00026021,2]
[386064099,1758207054539,-501.2164168,0.00026021,2]
[386064100,1758207054559,-875.31678154,0.00026021,2]
[386064101,1758207054572,-1000.0,0.00026021,2]
[386064102,1758207054587,-523.51453299,0.00026021,2]
[386064103,1758207054600,-1000.0,0.00026021,2]
[386064104,1758207054615,-622.92085283,0.00026021,2]
[386064105,1758207054630,-1000.0,0.00026021,2]
[386064106,1758207054645,-500.0,0.00026028,2]
[386064107,1758207054659,-646.0,0.00026084,3]
[386064108,1758207054673,-200.0,0.000261,7]
[386064109,1758207054689,-480.0,0.00026144,3]
[386064110,1758207054703,-974.04,0.00026144,3]
[386064111,1758207054718,-578.17,0.00026144,3]
[386064112,1758207054733,-1425.895851,0.00026145,4]
[386064113,1758207054749,-480.0,0.00026146,3]
[386064114,1758207054763,-480.0,0.00026146,3]
[386064115,1758207054778,-480.0,0.00026146,3]
[386064116,1758207054792,-480.0,0.00026146,3]
[386064117,1758207054806,-480.0,0.00026146,3]
[386064118,1758207054821,-574.40517232,0.00026146,3]
[386064119,1758207054835,-480.0,0.00026148,3]
[386064120,1758207054850,-480.0,0.00026148,3]
[386064121,1758207054865,-1994.86,0.00026148,3]
[386064122,1758207054880,-573.3081771,0.00026148,3]
[386064123,1758207054896,-947.29,0.00026148,3]
[386064124,1758207054910,-2621.42,0.00026148,3]
[386064125,1758207054925,-480.0,0.00026148,3]
[386064126,1758207054940,-480.0,0.00026148,3]
[386064127,1758207054951,-487.28,0.00026148,3]
[386064128,1758207054961,-810.4,0.00026149,3]
[386064129,1758207054970,-5215.31,0.00026149,3]
[386064130,1758207054980,-238.81,0.00026149,3]
[386064131,1758207055084,-554.4,0.00026149,3]
[386064132,1758207055101,-480.0,0.00026149,3]
[386064133,1758207055111,-480.0,0.00026175,3]
[386064134,1758207055121,-480.0,0.00026175,3]
[386064135,1758207055130,-480.0,0.00026175,3]
[386064136,1758207055140,-480.0,0.00026175,3]
[386064137,1758207055150,-3500.0,0.0002626,2]
[386064138,1758207055159,-560.0,0.00026329,2]
[386064139,1758207055169,-646.0,0.00026358,3]
[386064140,1758207055179,-480.0,0.00026418,3]
[386064141,1758207055188,-974.04,0.00026418,3]
[386064142,1758207055199,-578.17,0.00026418,3]
[386064143,1758207055208,-480.0,0.0002642,3]
[386064144,1758207055217,-480.0,0.0002642,3]
[386064145,1758207055227,-480.0,0.0002642,3]
[386064146,1758207055237,-480.0,0.0002642,3]
[386064147,1758207055246,-480.0,0.0002642,3]
[386064148,1758207055256,-480.0,0.00026422,3]
[386064149,1758207055266,-480.0,0.00026422,3]
[386064150,1758207055275,-1994.86,0.00026422,3]
[386064151,1758207055285,-947.29,0.00026422,3]
[386064152,1758207055294,-2621.42,0.00026422,3]
[386064153,1758207055304,-480.0,0.00026422,3]
[386064154,1758207055314,-480.0,0.00026422,3]
[386064155,1758207055323,-487.28,0.00026422,3]
[386064156,1758207055333,-810.4,0.00026423,3]
[386064157,1758207055343,-5215.31,0.00026423,3]
[386064158,1758207055352,-554.4,0.00026423,3]
[386064159,1758207055363,-480.0,0.00026423,3]
[386064160,1758207055372,-457680.0,0.0002644,2]
[386064161,1758207055382,-480.0,0.00026449,3]
[386064162,1758207055391,-480.0,0.00026449,3]
[386064163,1758207055400,-480.0,0.00026449,3]
[386064164,1758207055410,-480.0,0.00026449,3]
[386064165,1758207055419,-150.0,0.00026473,2]
[386064166,1758207055428,-2000.0,0.00026516,2]
[386064167,1758207055437,-2000.0,0.00026516,2]